Cogmind - Beta 15 @@@ ROGUE MODE // 2025.06.20 @ 14:16:53 Player: Amberulez Result: Destroyed by B-75 Beast with Heavy Plasma Cannon Performance ------------- Evolutions (4) 2000 Regions Visited (9) 1800 Robots Destroyed (171) 855 Value Destroyed (5121) 5121 Prototype IDs (17) 340 Alien Tech Used (0) 0 Bonus (1097) 1097 TOTAL SCORE: 11213 Bonus ------- High Alert Combat Kills 21 Follower Combat Kills 276 Registered with UFD 300 Met Optimus in HQ 500 Cogmind --------- Core Integrity 0/850 Matter 300/300 Energy 300/300 System Corruption 1% Temperature Cool (12) Movement Walking (120) Location -6/Extension Parts ------- > --- POWER (1) -------- (None) > --- PROPULSION (6) --- Improved Medium Treads Carbon-fiber Leg Flexi-carbon Leg Armored Leg > --- UTILITY (5) ------ Improved Heat Sink Compact Battery Machine Analyzer Hacking Suite Makeshift Hacking Suite > --- WEAPON (3) ------- High-powered Shock Rifle Pulse Rifle Cooled Plasma Cannon > --- INVENTORY (5) ---- Advanced Sensor Array Peak State ------------ > --- POWER ------------ Light Angular Momentum Engine > --- PROPULSION ------- Improved Medium Treads Carbon-fiber Leg Flexi-carbon Leg Armored Leg > --- UTILITY ---------- Improved Heat Sink Compact Battery Machine Analyzer Hacking Suite Makeshift Hacking Suite > --- WEAPON ----------- High-powered Shock Rifle Pulse Rifle Cooled Plasma Cannon > --- INVENTORY -------- Advanced Sensor Array [Rating: 53] Favorites ----------- Power Light Nuclear Core Engine Cooled Ion Engine Power Core Light Nuclear Core Propulsion Light Treads Treads Light Treads Leg Aluminum Leg Wheel Compact Wheel Hover Unit Improved Hover Unit Utility Large Storage Unit Device Improved Heat Sink Storage Large Storage Unit Processor Improved Targeting Computer Hackware Hacking Suite Protection Light Armor Plating Weapon Improved Light Cannon Energy Gun Particle Gun Energy Cannon Cooled Plasma Cannon Ballistic Gun Heavy Assault Rifle Ballistic Cannon Improved Light Cannon Launcher Grenade Launcher Impact Weapon Hammer Slashing Weapon Scythe Build | -11 -10 -9 -9 -8 -8 -8 -8 -6 -6 ------- Run | Yrd Mat Mat Min Mat Sto Rec Scr Fac Ext Slots Evolved 8 | . . 2 . 2 . . . 4 . Power . | . . . . . . . . . . Propulsion 4 | . . . . 2 . . . 2 . Utility 3 | . . 2 . . . . . 1 . Weapon 1 | . . . . . . . . 1 . Parts Attached 136 | 6 19 18 7 13 26 2 8 29 8 Power 13 | 1 2 2 . 2 2 . . 3 1 Engine 8 | 1 1 2 . . . . . 3 1 Core 5 | . 1 . . 2 2 . . . . Reactor . | . . . . . . . . . . Propulsion 46 | 2 10 5 1 4 11 1 . 8 4 Treads 26 | 2 1 4 1 4 11 1 . 1 1 Leg 7 | . 4 . . . . . . . 3 Wheel 6 | . 5 1 . . . . . . . Hover 7 | . . . . . . . . 7 . Flight . | . . . . . . . . . . Utility 35 | 1 2 5 2 1 6 1 4 11 2 Device 8 | . . 1 . . . . 1 5 1 Storage 7 | 1 1 . . . . 1 2 1 1 Processor 4 | . . 1 1 . 1 . . 1 . Hackware 4 | . . . . . . . 1 3 . Protection 12 | . 1 3 1 1 5 . . 1 . Artifact . | . . . . . . . . . . Weapon 42 | 2 5 6 4 6 7 . 4 7 1 Energy Gun 10 | . 1 1 . 2 1 . 1 3 1 Energy Cannon 4 | . . 1 . . 1 . . 2 . Ballistic Gun 13 | 2 3 3 . 3 . . 2 . . Ballistic Cannon 7 | . 1 1 2 . 2 . . 1 . Launcher 6 | . . . 2 1 2 . . 1 . Special Weapon . | . . . . . . . . . . Impact Weapon 1 | . . . . . . . 1 . . Slashing Weapon 1 | . . . . . 1 . . . . Piercing Weapon . | . . . . . . . . . . Special Melee Weapon . | . . . . . . . . . . Unidentified Prototypes 8 | . . 2 . 1 2 . . 3 . Parts Lost 41 | . 5 3 2 1 11 . 1 17 1 Power 6 | . 1 . . . 1 . 1 2 1 Propulsion 16 | . 3 1 . . 3 . . 9 . Utility 13 | . . 1 2 1 5 . . 4 . Weapon 6 | . 1 1 . . 2 . . 2 . Highest Loss Streak 7 | . 2 1 1 1 4 . 1 7 1 To Critical Strikes . | . . . . . . . . . . Average Backups 14 | 4 10 14 14 14 14 15 18 13 2 Power . | . . . . . . . . . . Propulsion 4 | 2 3 3 6 5 5 5 5 2 . Utility 5 | . 1 5 5 5 5 5 7 7 1 Weapon 4 | . 4 5 3 3 3 4 5 3 . Tool/Special . | . . . . . . . . . . Unused Backups 44 | . 11 11 1 3 7 1 6 4 . Power . | . . . . . . . . . . Propulsion 14 | . 7 2 . . 2 1 2 . . Utility 12 | . . 3 1 1 1 . 2 4 . Weapon 18 | . 4 6 . 2 4 . 2 . . Tool/Special . | . . . . . . . . . . Average Slot Usage (%) 93 | . 98 98 99 94 95 98 93 68 46 Engine 4 | . 10 9 11 2 . . . 4 . Core 4 | . 3 1 . 6 8 9 8 . . Treads 26 | . 18 19 22 31 35 36 36 11 1 Device 4 | . . 10 11 1 . . . 4 4 Storage 10 | . 22 11 11 9 9 9 9 4 4 Processor 8 | . . 6 10 9 8 9 9 6 6 Hackware 1 | . . . . . . . 2 7 13 Protection 12 | . 4 14 10 15 15 18 14 4 . Ballistic Gun 9 | . 23 9 8 9 10 . 12 2 . Ballistic Cannon 4 | . . 11 2 8 6 16 . . . Launcher 2 | . . . 10 . . . . 2 . Peak Build Rating 53 | 6 11 20 20 22 28 25 35 47 53 Average Rating 21 | 5 8 17 18 20 21 24 26 31 27 On Entrance 16 | . 6 11 19 19 20 25 21 29 12 Naked Turns . | . . . . . . . . . . Heaviest Build 73 | 10 32 43 42 43 42 59 57 73 27 Greatest Support 100 | 40 40 40 40 80 82 82 82 100 51 Greatest Overweight (x) 6 | . 2 1 1 1 . . . 6 4 Average Overweight (x) . | . . . . . . . . . 1 Largest Inventory Capacity 20 | 8 15 15 15 15 15 20 20 20 5 Average Capacity 15 | 7 14 15 15 15 15 17 20 15 5 Most Carried 20 | 6 15 15 15 15 15 18 20 20 5 Average Carried 14 | 4 10 14 14 14 14 15 19 14 2 Final Capacity 20 | 8 15 15 15 15 15 20 20 5 5 Final Carried 20 | 6 14 15 15 15 15 18 20 5 1 Class Distribution -------------------- 51% | Mutant 35% | Scavenger-Mutant 6% | Hacker-Mutant Dominant Class ---------------- Mutant | -10/Materials Scavenger-Mutant | -9/Materials Scavenger-Mutant | -9/Mines Scavenger-Mutant | -8/Materials Scavenger-Mutant | -8/Storage Mutant | -8/Recycling Mutant | -8/Scraptown Hacker-Mutant | -6/Factory Hacker-Mutant | -6/Extension Resources | -11 -10 -9 -9 -8 -8 -8 -8 -6 -6 ----------- Run | Yrd Mat Mat Min Mat Sto Rec Scr Fac Ext Matter Collected 5827 | 180 517 877 329 665 1211 87 798 776 387 Remotely . | . . . . . . . . . . Salvage Created 5681 | . 696 1196 261 661 1768 9 172 880 38 Parts 323 | . 55 63 19 40 105 . 5 35 1 Haulers Intercepted 13 | . 2 4 . 1 6 . . . . Recyclers Shooed 5 | . . 1 1 . 2 1 . . . Parts Field Recycled . | . . . . . . . . . . Retrieved Matter . | . . . . . . . . . . Parts Self-Destructed . | . . . . . . . . . . Prevented . | . . . . . . . . . . Kills | -11 -10 -9 -9 -8 -8 -8 -8 -6 -6 ------- Run | Yrd Mat Mat Min Mat Sto Rec Scr Fac Ext Combat Hostiles Destroyed 120 | . 14 26 8 14 35 . 3 19 1 Guns 63 | . 14 13 3 3 28 . 1 1 . Cannons 30 | . . 13 . 9 3 . . 4 1 AOE 27 | . . . 5 2 4 . 2 14 . Classes Destroyed 19 | . 6 3 2 1 2 . 3 2 . Worker 14 | . 3 1 3 . 5 . . 2 . Builder 6 | . . . . 1 1 . . 4 . Tunneler 2 | . . 1 . 1 . . . . . Hauler 13 | . 2 4 . 1 6 . . . . Recycler 8 | . . 2 1 . 2 . . 3 . Mechanic 2 | . 1 . . . . . . 1 . Operator 2 | . . . . . . . . 2 . Watcher 4 | . 1 1 . 1 1 . . . . Swarmer 22 | . 3 3 . . 12 . . 4 . Grunt 62 | . 11 17 6 8 11 . . 9 . Brawler 4 | . . . . . 3 . . 1 . Duelist 1 | . . . 1 . . . . . . Sentry 22 | . . 6 . 6 8 . . 2 . Demolisher 1 | . . . 1 . . . . . . Hunter 3 | . . . . . 1 . . 2 . Programmer 2 | . . . . . . . . 1 1 Guru 1 | . . . . . . . 1 . . Scrapper 1 | . . . . . . . 1 . . Mutant 1 | . . . . . . . 1 . . Best Kill Streak 11 | . 5 6 4 5 7 . 3 11 1 Combat Bots Only 7 | . 3 6 3 3 5 . 3 7 1 Max Kills in Single Turn 8 | . 2 1 3 2 5 . 2 8 1 Gunslinging 1 | . . . . . 1 . . . . Exploded 4 | . . . 2 1 4 . 2 3 . Melee . | . . . . . . . . . . Uniques/NPCs Destroyed . | . . . . . . . . . . Combat | -11 -10 -9 -9 -8 -8 -8 -8 -6 -6 -------- Run | Yrd Mat Mat Min Mat Sto Rec Scr Fac Ext Hostile Shots Fired 746 | . 89 113 24 50 167 2 15 263 23 Missed 218 | . 20 23 7 15 34 1 4 103 11 Hits 528 | . 69 90 17 35 133 1 11 160 12 Melee 2 | . . . . . 2 . . . . Projectile 526 | . 69 90 17 35 131 1 11 160 12 AOE 10 | . . . 9 . . . . 1 . Critical Strikes 20 | . 3 1 . 4 8 . . 4 . Actively Blocked 1 | . 1 . . . . . . . . Part Disruptions 1 | . 1 . . . . . . . . Damage Taken 7898 | . 1019 1117 472 533 1847 13 230 2322 345 Core 1461 | . 129 180 42 26 148 . 68 706 162 Absorbed by Shields . | . . . . . . . . . . Redirected to Shielding 138 | . 15 37 . . . . . 86 . Regen/Repaired (Parts) 188 | . . . . 188 . . . . . Core Remaining (%) 62 | 100 48 . 44 . . . 56 . . Volleys Fired 388 | . 76 86 24 43 113 1 9 30 6 Largest 3 | . 2 2 2 2 2 2 2 3 2 Hottest 180 | . 85 95 56 62 140 66 75 180 98 Shots Fired 749 | . 151 171 36 86 225 6 12 53 9 Gun 526 | . 151 79 21 43 198 . 11 20 3 Cannon 190 | . . 92 2 37 26 6 . 21 6 Launcher 33 | . . . 13 6 1 . 1 12 . Special . | . . . . . . . . . . Kinetic 646 | . 150 144 23 80 212 6 11 20 . Thermal 65 | . 1 22 . . 12 . . 21 9 Explosive 33 | . . . 13 6 1 . 1 12 . Electromagnetic 5 | . . 5 . . . . . . . Robot Hit Streak 18 | . 13 18 8 15 17 5 6 11 12 Robot Miss Streak 10 | . 3 3 2 2 5 . 1 10 1 Penetration Max . | . . . . . . . . . . Secondary Targets 5 | . . . . . 5 . . . . Max Gunslinging Chain 1 | . . . . . 1 . . . . Shots Hit Robots 519 | . 109 118 25 55 159 4 8 35 6 Core Hits 339 | . 46 48 19 30 82 2 6 102 4 Critical Kills 1 | . 1 . . . . . . . . Critical Parts Destroyed 2 | . . . . . 2 . . . . Critical Strikes 7 | . 1 1 . 1 3 1 . . . Destroy 3 | . 1 . . . 2 . . . . Blast 4 | . . 1 . 1 1 1 . . . Melee Attacks 3 | . . . . . 3 . . . . Impact . | . . . . . . . . . . Slashing 3 | . . . . . 3 . . . . Piercing . | . . . . . . . . . . Sneak Attacks . | . . . . . . . . . . Combat Hostiles . | . . . . . . . . . . Follow-up Attacks . | . . . . . . . . . . Damage Inflicted 12183 | . 1038 2154 821 1300 3043 84 244 3276 223 Guns 5282 | . 928 972 251 402 2207 . 149 333 40 Cannons 2628 | . . 1178 . 624 310 84 . 273 159 Explosions 4061 | . 110 . 527 274 385 . 95 2670 . Melee . | . . . . . . . . . . Ramming 212 | . . 4 43 . 141 . . . 24 Kinetic 6923 | . 912 1817 251 1026 2403 84 149 281 . Thermal 967 | . 16 257 . . 114 . . 381 199 Explosive 4005 | . 110 . 527 274 385 . 95 2614 . Electromagnetic 76 | . . 76 . . . . . . . Impact . | . . . . . . . . . . Slashing . | . . . . . . . . . . Piercing . | . . . . . . . . . . Highest Corruption 7 | . . . . 5 7 7 7 . 1 Average Corruption 5 | . . . . 5 6 7 7 . 1 Corruption Purged . | . . . . . . . . . . Corruption Blocked . | . . . . . . . . . . Effects 139 | . . . . 16 78 39 . . 6 Message Errors 32 | . . . . 2 17 12 . . 1 Matter Fused 31 | . . . . 4 19 5 . . 3 Heat Flow Errors 17 | . . . . 3 7 7 . . . Energy Discharges 17 | . . . . 1 12 4 . . . Parts Rejected 1 | . . . . . 1 . . . . Parts Fused 4 | . . . . 1 3 . . . . Data Loss (minor) 15 | . . . . 2 8 4 . . 1 Data Loss (major) 9 | . . . . . 5 3 . . 1 Misfires 9 | . . . . 1 4 4 . . . Alerts 1 | . . . . 1 . . . . . Weapon Failures 3 | . . . . 1 2 . . . . Overload Shots . | . . . . . . . . . . Overflow Damage 69 | . . 10 . 9 28 . . 9 13 Projectiles 37 | . . 10 . 9 5 . . . 13 Explosions 32 | . . . . . 23 . . 9 . Melee . | . . . . . . . . . . Knockbacks 24 | . . 11 1 5 3 1 . 2 1 Impact 2 | . . . 1 . . . . . 1 Kinetic 18 | . . 9 . 3 3 1 . 2 . Secondary 4 | . . 2 . 2 . . . . . Self-Inflicted Damage 464 | . 79 . . 17 . . 20 254 94 Shots 18 | . 1 . . 2 . . 1 13 1 Rammed 31 | . . 1 6 1 16 . . . 7 Targets Rammed 37 | . . 1 8 1 20 . . . 7 Kicked . | . . . . . . . . . . Crushed 6 | . . . 2 . 4 . . . . Highest Temperature 500 | . 52 342 . 228 279 256 32 500 . Average Temperature 71 | . 14 53 . 50 76 104 16 135 . Received Heat Transfer 2850 | . 510 474 78 333 792 . 57 582 24 Effects 8 | . . . . 1 . 3 . 4 . Shutdowns 1 | . . . . . . . . 1 . Energy Bleed 1 | . . . . 1 . . . . . Interference 6 | . . . . . . 3 . 3 . Siege Activations . | . . . . . . . . . . Martial Activations . | . . . . . . . . . . Shielding Activations . | . . . . . . . . . . Robots Disrupted . | . . . . . . . . . . Combat Hostiles . | . . . . . . . . . . Robots Corrupted . | . . . . . . . . . . Combat Hostiles . | . . . . . . . . . . Parts Fried . | . . . . . . . . . . Impact Corruptions . | . . . . . . . . . . Robots Melted . | . . . . . . . . . . Combat Hostiles . | . . . . . . . . . . Parts Melted 4 | . . . . . . . . 2 2 Heat Transferred 1847 | . 37 592 . . 259 . . 685 274 Parts Sabotaged . | . . . . . . . . . . Parts Stolen . | . . . . . . . . . . Parts Stripped . | . . . . . . . . . . Power Chain Reactions . | . . . . . . . . . . Alert | -11 -10 -9 -9 -8 -8 -8 -8 -6 -6 ------- Run | Yrd Mat Mat Min Mat Sto Rec Scr Fac Ext Maximum Alert Level 2 | . . 1 1 1 1 . . 2 1 Low Security (%) 72 | 100 100 64 86 96 47 100 . 38 29 Level 1 25 | . . 35 13 3 52 . . 37 70 Level 2 1 | . . . . . . . . 24 . Level 3 . | . . . . . . . . . . Level 4 . | . . . . . . . . . . Level 5 . | . . . . . . . . . . High Security . | . . . . . . . . . . Max Security . | . . . . . . . . . . Peak Influence 664 | . 102 265 216 208 380 136 . 664 328 Initial 313 | . . . . 69 56 136 . . 313 Average 119 | . 33 157 59 90 209 24 . 259 190 Influence Increases 4580 | . 446 763 292 557 1194 91 . 1120 117 Destroy 0b10 Robot/C 2500 | . 280 520 160 340 740 60 . 380 20 Destroy 0b10 Robot/NC 265 | . 35 45 20 20 80 5 . 60 . Destroy Leader 644 | . 66 120 40 114 204 . . 90 10 Allied During Kill 31 | . . . . 10 6 10 . 5 . Successful Hack 100 | . 16 28 . 6 23 . . 6 21 Disable Machine 330 | . 30 45 15 15 90 15 . 90 30 Destroy Structure 350 | . 19 5 57 52 36 1 . 159 21 Partial Spotted 75 | . . . . . 15 . . 45 15 Lose Combat Pursuer 285 | . . . . . . . . 285 . Influence Decreases 4580 | . 446 763 113 601 977 443 . 480 757 Entered New Map 732 | . . . . 110 79 216 . . 327 Time Decay 2835 | . 384 532 93 421 598 207 . 320 280 Lost Part 380 | . 50 30 20 10 110 . . 160 . Lost Ally 120 | . . . . 60 40 20 . . . Purge Threat 513 | . 12 201 . . 150 . . . 150 Squads Dispatched 38 | . 2 2 1 9 12 . . 9 3 Investigation 12 | . 1 2 . 3 4 . . 2 . Extermination 2 | . . . . . . . . 2 . Reinforcement 8 | . 1 . 1 2 . . . 1 3 Assault 2 | . . . . . 2 . . . . Garrison 14 | . . . . 4 6 . . 4 . Intercept . | . . . . . . . . . . Searches Triggered . | . . . . . . . . . . Construction Impeded 3 | . . . 1 1 . . . . 1 Haulers Reinforced . | . . . . . . . . . . Active Scanning Responses . | . . . . . . . . . . Cargo Convoy Interrupts . | . . . . . . . . . . Stealth | -11 -10 -9 -9 -8 -8 -8 -8 -6 -6 --------- Run | Yrd Mat Mat Min Mat Sto Rec Scr Fac Ext Distress Signals 15 | . 1 5 1 3 2 . . . 3 Communications Jammed 1 | . . . . . . . . 1 . Distress Signals . | . . . . . . . . . . Times Spotted 192 | . 22 37 9 20 46 1 11 42 4 Peak Tracking Total 10 | . 5 7 3 3 5 . 3 10 2 Tactical Retreats 5 | . . . . . . . . 5 . Traps | -11 -10 -9 -9 -8 -8 -8 -8 -6 -6 ------- Run | Yrd Mat Mat Min Mat Sto Rec Scr Fac Ext Traps Triggered 8 | . 3 . . . 3 . . 2 . Indirectly . | . . . . . . . . . . Trap Hack Attempts . | . . . . . . . . . . Triggered . | . . . . . . . . . . Disarmed . | . . . . . . . . . . Reprogrammed . | . . . . . . . . . . Reused . | . . . . . . . . . . Traps Extracted . | . . . . . . . . . . Installed . | . . . . . . . . . . Triggered . | . . . . . . . . . . Machines | -11 -10 -9 -9 -8 -8 -8 -8 -6 -6 ---------- Run | Yrd Mat Mat Min Mat Sto Rec Scr Fac Ext Machines Disabled 23 | . 2 4 1 1 6 1 . 6 2 Max in Single Turn 5 | . 2 1 1 1 1 1 . 5 2 Garrison Access 2 | . . . . 1 . . . 1 . Energy Cycler 1 | . . . . . . . . . 1 Machines Repaired . | . . . . . . . . . . Machines Dismantled . | . . . . . . . . . . Machines Sabotaged . | . . . . . . . . . . Overloaded Fab Kills . | . . . . . . . . . . Hacking | -11 -10 -9 -9 -8 -8 -8 -8 -6 -6 --------- Run | Yrd Mat Mat Min Mat Sto Rec Scr Fac Ext Machines Accessed 53 | . 4 6 . 5 15 7 7 5 4 Terminals 30 | . 4 4 . 1 12 3 . 2 4 Fabricators 1 | . . . . . . . . 1 . Repair Stations 1 | . . . . 1 . . . . . Recycling Units 6 | . . 1 . 1 2 2 . . . Scanalyzers 3 | . . 1 . 1 . . . 1 . Garrison Access 3 | . . . . 1 1 . . 1 . Total Hacks 152 | . 9 19 . 16 30 12 47 12 7 Successful 109 | . 6 13 . 12 12 9 47 6 4 Failed 42 | . 2 6 . 4 18 3 . 6 3 Catastrophic 11 | . . 2 . 1 6 . . 1 1 Database Lockouts 1 | . 1 . . . . . . . . Manual 25 | . 6 2 . 4 4 . 1 4 4 Terminals 66 | . 9 12 . 5 24 4 . 5 7 Fabricators 3 | . . . . . . . . 3 . Repair Stations 5 | . . . . 5 . . . . . Recycling Units 12 | . . 1 . 2 4 5 . . . Scanalyzers 12 | . . 6 . 3 . . . 3 . Garrison Access 4 | . . . . 1 2 . . 1 . Terminal Hacks 79 | . 6 5 . 2 8 6 47 1 4 Record 43 | . . . . . . 2 41 . . Robot Analysis 9 | . 2 . . 1 . . 6 . . Prototype ID Bank 6 | . 2 1 . 1 1 1 . . . Open Door 5 | . . . . . 3 . . 1 1 Branch Access Points 2 | . . 1 . . . . . . 1 Recycling Unit Index 1 | . . . . . . 1 . . . Alert Level 5 | . 1 1 . . 2 . . . 1 Unreport Threat 5 | . 1 2 . . 1 . . . 1 Locate Traps 1 | . . . . . 1 . . . . Hauler Manifests 1 | . . . . . . 1 . . . Release Object 1 | . . . . . . 1 . . . Fabricator Hacks 2 | . . . . . . . . 2 . Load Schematic 1 | . . . . . . . . 1 . Build 1 | . . . . . . . . 1 . Repair Station Hacks 4 | . . . . 4 . . . . . Scan Component 2 | . . . . 2 . . . . . Repair 2 | . . . . 2 . . . . . Recycling Unit Hacks 10 | . . 1 . 2 4 3 . . . Report Inventory 5 | . . 1 . 1 1 2 . . . Retrieve Matter 3 | . . . . . 3 . . . . Retrieve Components 2 | . . . . 1 . 1 . . . Scanalyzer 8 | . . 5 . 2 . . . 1 . Insert Component 3 | . . 1 . 1 . . . 1 . Analyze 5 | . . 4 . 1 . . . . . Garrison Access Hacks 2 | . . . . 1 . . . 1 . Seal Access 2 | . . . . 1 . . . 1 . Unauthorized Hacks 4 | . . 2 . 1 . . . 1 . Terminals 4 | . . 2 . 1 . . . 1 . Botnet 4 | . . 2 . 1 . . . 1 . Fabricators . | . . . . . . . . . . Repair Stations . | . . . . . . . . . . Recycling Units . | . . . . . . . . . . Scanalyzers . | . . . . . . . . . . Garrison Access . | . . . . . . . . . . Data Cores Recovered 1 | . . . . . . . . 1 . Used 1 | . . . . . . . . 1 . Hacking Detections 23 | . 4 4 . 3 6 2 . 2 2 Full Trace Events 11 | . 2 2 . 3 2 . . 2 . Feedback Events 1 | . . . . . . . . 1 . Hackware Fried 1 | . . . . . . . . 1 . Feedback Blocked . | . . . . . . . . . . Robot Schematics Acquired . | . . . . . . . . . . Robots Built . | . . . . . . . . . . Authchips . | . . . . . . . . . . Time . | . . . . . . . . . . Total Robot Build Rating . | . . . . . . . . . . Part Schematics Acquired 2 | . . 1 . 1 . . . . . Parts Built 2 | . . . . . . . . 2 . Authchips . | . . . . . . . . . . Time 31 | . . . . . . . . 31 . Total Part Build Rating 4 | . . . . . . . . 4 . Parts Repaired 2 | . . . . 2 . . . . . Time 58 | . . . . 58 . . . . . Parts Recycled . | . . . . . . . . . . Recycled Matter . | . . . . . . . . . . Retrieved Matter . | . . . . . . . . . . Retrieved Components 11 | . . . . 10 . 1 . . . Parts Scanalyzed 3 | . . 1 . 1 . . . 1 . Part Schematics Acquired 2 | . . 1 . 1 . . . . . Parts Damaged 1 | . . . . . . . . 1 . Bothacking | -11 -10 -9 -9 -8 -8 -8 -8 -6 -6 ------------ Run | Yrd Mat Mat Min Mat Sto Rec Scr Fac Ext Used RIF Installer . | . . . . . . . . . . Robots Hacked . | . . . . . . . . . . Non-combat . | . . . . . . . . . . Combat . | . . . . . . . . . . Robot Hacks Applied . | . . . . . . . . . . Relay Couplers Released . | . . . . . . . . . . Fabnet Peak Effective % . | . . . . . . . . . . Robots Rewired 3 | . . . . . . . . . 3 Allies Hacked . | . . . . . . . . . . Hacks Repelled . | . . . . . . . . . . Allies | -11 -10 -9 -9 -8 -8 -8 -8 -6 -6 -------- Run | Yrd Mat Mat Min Mat Sto Rec Scr Fac Ext Total Allies 18 | . . . 3 . 12 . . . 3 Largest Group 10 | . . . 3 3 10 3 2 1 3 Highest-Rated Group 173 | . . . 40 40 173 61 45 29 76 Highest-Rated Ally 31 | . . . 16 16 31 29 29 29 31 Total Orders . | . . . . . . . . . . Ally Attacks 83 | . . . . 32 13 17 16 . 5 Total Damage 1060 | . . . . 407 127 238 221 . 67 Kills 10 | . . . . 3 2 3 2 . . Allies Corrupted . | . . . . . . . . . . Allies Melted 3 | . . . . . . . 3 . . Intel | -11 -10 -9 -9 -8 -8 -8 -8 -6 -6 ------- Run | Yrd Mat Mat Min Mat Sto Rec Scr Fac Ext Active Infowar (turns) 1166 | . . . . . . . . 458 708 Sensors 40 | . . . . . . . . 40 . Structural 2 | . . . . . . . . 2 . Machine Analysis 946 | . . . . . . . . 238 708 Jamming 218 | . . . . . . . . 218 . Robot Analysis Total 9 | . 2 . . 1 . . 6 . . Derelict Logs Recovered . | . . . . . . . . . . Drone Launches . | . . . . . . . . . . Drone Recoveries . | . . . . . . . . . . Exploration | -11 -10 -9 -9 -8 -8 -8 -8 -6 -6 ------------- Run | Yrd Mat Mat Min Mat Sto Rec Scr Fac Ext Turns Passed 17853 | 120 1511 1752 3987 1044 2834 1150 3656 1091 708 Spaces Moved 8842 | 69 857 770 753 361 1405 724 2273 1099 531 Core 737 | 4 . . . . . . . 328 405 Treads 7051 | 65 525 670 753 361 1405 724 2273 255 20 Legs 150 | . 44 . . . . . . . 106 Wheels 388 | . 288 100 . . . . . . . Hover 516 | . . . . . . . . 516 . Flight . | . . . . . . . . . . Fastest Speed 40 | 50 95 100 160 160 155 156 156 40 50 Average Speed 149 | 153 141 172 212 177 156 156 156 74 123 Slowest Speed 350 | 160 260 240 240 240 160 156 156 350 250 Overloaded Moves . | . . . . . . . . . . Propulsion Burnouts . | . . . . . . . . . . Robots Hopped . | . . . . . . . . . . Potential Cave-ins 1 | . . . . . . . . 1 . Cave-ins Triggered . | . . . . . . . . . . Exploration Rate (%) 60 | 4 71 57 99 22 93 98 90 22 47 Regions Visited 9 Branch Regions 5 Pre-discovered Areas . | . . . . . . . . . . Known Exits Taken 1 | . . 1 . . . . . . . Unknown Exits Taken 8 | 1 1 . 1 1 1 1 1 1 . Scrap Searched 6 | . . . 3 . . . 3 . . Spaces Dug 8 | . . . 7 . . . . 1 . Terrain Destroyed 551 | . 18 . 82 54 60 1 67 245 24 Melee . | . . . . . . . . . . Projectile 6 | . . . . . . 1 1 4 . AOE 545 | . 18 . 82 54 60 . 66 241 24 Terrain Rammed . | . . . . . . . . . . Walls Destroyed . | . . . . . . . . . . Machines Disabled . | . . . . . . . . . . Actions | -11 -10 -9 -9 -8 -8 -8 -8 -6 -6 --------- Run | Yrd Mat Mat Min Mat Sto Rec Scr Fac Ext Total 12747 | 80 1042 1035 3096 685 1803 744 2374 1315 573 Wait 2986 | . 40 97 2298 237 186 . 36 89 3 Move 8833 | 68 856 769 752 360 1404 723 2272 1098 531 Hop . | . . . . . . . . . . Pick Up 110 | 6 26 23 3 8 16 2 14 12 . Fast Attach 68 | 6 6 7 1 11 10 . 8 13 6 Attach 47 | . 4 5 1 . 7 1 1 24 4 Detach 30 | . 2 3 . . . 3 3 19 . Swap 71 | . 9 11 6 7 21 3 6 8 . Drop 135 | . 23 30 3 18 21 2 16 22 . Fire 388 | . 76 86 24 43 113 1 9 30 6 Melee 3 | . . . . . 3 . . . . Ram 7 | . . . . . . . . . 7 Kick . | . . . . . . . . . . Crush 30 | . . 1 8 1 20 . . . . Escape Stasis . | . . . . . . . . . . Rewire 39 | . . 3 . . 2 9 9 . 16 Trap . | . . . . . . . . . . Miscellaneous . | . . . . . . . . . . Route ------- -11/Scrapyard -10/Materials (discovered 2 exits: *Mat / [*Min]) -9/Materials (discovered 3 exits: *Mat / *Min x2) -9/Mines (discovered 2 exits: *Mat x2) -8/Materials -8/Storage (discovered 2 exits: [*Fac] / *Rec) -8/Recycling (discovered 2 exits: *Fac / *Scr) -8/Scraptown (discovered 2 exits: *Fac x2) -6/Factory -6/Extension (discovered 1 exit: Cet) History --------- Turn | Location | Event 36 | -11/Scrapyard | Discovered new exit (range 16) 121 | -11/Scrapyard | Entered Materials 283 | -10/Materials | Discovered new exit (range 14) 318 | -10/Materials | Build established: Mutant 335 | -10/Materials | Central database locked down 871 | -10/Materials | Discovered new exit (range 7) 1213 | -10/Materials | Core integrity fell below 50% 1632 | -10/Materials | Entered another Materials area 1632 | -9/Materials | Evolved 2 slots: Utility x2 1957 | -9/Materials | Discovered new exit (range 7) 2450 | -9/Materials | Discovered new exit (range 14) 2586 | -9/Materials | Build established: Scavenger-Mutant 3077 | -9/Materials | Identified exit to Mines 3384 | -9/Materials | Entered Mines 3483 | -9/Mines | Assembled infested the area 6012 | -9/Mines | Received a Rocket Launcher from a helpful Derelict 6071 | -9/Mines | Discovered new exit (range 4) 6114 | -9/Mines | Core integrity fell below 50% 6400 | -9/Mines | Build established: Mutant 6407 | -9/Mines | Discovered new exit (range 16) 7215 | -9/Mines | Assisted by bots powering up and referring to "LRC-V3" 7371 | -9/Mines | Entered Materials 7371 | -8/Materials | Accompanied by 3 allies 7371 | -8/Materials | Evolved 2 slots: Propulsion x2 7527 | -8/Materials | Garrison activated, responded to threat 7609 | -8/Materials | Lost 3 allies 7916 | -8/Materials | Build established: Scavenger-Mutant 8012 | -8/Materials | Repaired Hrd. Light Armor Plating 8041 | -8/Materials | Repaired Lgt. Armor Plating 8185 | -8/Materials | Discovered new exit (range 13) 8415 | -8/Materials | Entered Storage 8853 | -8/Storage | Found Prototype Launcher 8853 | -8/Storage | Identified Scatter Rocket Array 9391 | -8/Storage | Garrison activated, responded to threat 9568 | -8/Storage | Met a pair of Derelict thieves 9746 | -8/Storage | Garrison activated, responded to threat 9797 | -8/Storage | Lost 4 parts (1p2n1u) 9977 | -8/Storage | Lost 3 parts (1u2w) 10452 | -8/Storage | Build established: Mutant 10693 | -8/Storage | Discovered new exit (range 13) 10734 | -8/Storage | Assisted by bots powering up and referring to "LRC-V3" 11022 | -8/Storage | Build established: Commander-Mutant 11245 | -8/Storage | Used back door to open Recycling access 11245 | -8/Storage | Discovered new exit (range 4) 11249 | -8/Storage | Entered Recycling 11249 | -8/Recycling | Accompanied by 3 allies 11546 | -8/Recycling | Build established: Mutant 11990 | -8/Recycling | Discovered new exit (range 11) 12306 | -8/Recycling | Scanned before Scraplab entrance 12331 | -8/Recycling | Entered Scraplab 12357 | -8/Recycling | Discovered new exit (range 3) 12399 | -8/Recycling | Entered Scraptown 12399 | -8/Scraptown | Accompanied by 2 allies 12409 | -8/Scraptown | System corruption cleaned by C-Scrubber 12473 | -8/Scraptown | Heard Great Nut preacher, LISTEN AND RECITE! 13014 | -8/Scraptown | Discovered new exit (range 3) 13147 | -8/Scraptown | Visited Spacefarers 13262 | -8/Scraptown | Visited SPCMW 13318 | -8/Scraptown | Visited Cyclists 13970 | -8/Scraptown | Visited TADAMA 14026 | -8/Scraptown | Visited Red Mages 14163 | -8/Scraptown | Visited Symbiants 14276 | -8/Scraptown | Visited UFD Registry 14276 | -8/Scraptown | Registered with UFD as "Cogripper" 14305 | -8/Scraptown | Visited IN-MT5's Study 14689 | -8/Scraptown | Visited Scrapoid Pod Storage 14715 | -8/Scraptown | Found Scrapoid Pod 14841 | -8/Scraptown | Visited Abandonware Association 14892 | -8/Scraptown | Learned abandonware demo "ERRANTS.EXE" 14960 | -8/Scraptown | Visited Chapter 10 15053 | -8/Scraptown | Visited Junk Repository 15262 | -8/Scraptown | Discovered new exit (range 5) 15317 | -8/Scraptown | Visited Botcube Research 15383 | -8/Scraptown | Found Botcube 15415 | -8/Scraptown | Visited Scrap Suit Storage 15466 | -8/Scraptown | Visited Analyses Database 15544 | -8/Scraptown | Met Optimus 15544 | -8/Scraptown | Accepted into 0bPrime 15653 | -8/Scraptown | Civil war broke out across Scraptown 15724 | -8/Scraptown | Lost 5 allies 15910 | -8/Scraptown | Optimus destroyed in the chaos of civil war 16055 | -8/Scraptown | Entered Factory 16055 | -6/Factory | Accompanied by 1 ally 16055 | -6/Factory | Evolved 4 slots: Propulsion x2, Utility x1, Weapon x1 16463 | -6/Factory | Garrison activated, responded to threat 16507 | -6/Factory | Lost 4 parts (1p1n1u1w) 16629 | -6/Factory | Fabricated Imp. Hover Unit? 16847 | -6/Factory | Imp. Hacking Suite fried by hacking feedback 16905 | -6/Factory | Destroyed 7 combat bots 16906 | -6/Factory | Lost 4 parts (3n1u) 16948 | -6/Factory | Build established: Hacker-Mutant 16962 | -6/Factory | Lost 7 parts (1p4n1u1w) 16968 | -6/Factory | Core integrity fell below 50% 17099 | -6/Factory | Discovered new exit (range 10) 17146 | -6/Factory | Core integrity fell below 20% 17146 | -6/Factory | Entered Extension 17251 | -6/Extension | Spotted B-75 Beast 17400 | -6/Extension | Identified exit to Cetus 17442 | -6/Extension | Energy Cycler disabled 17443 | -6/Extension | Rescued a captive Derelict 17443 | -6/Extension | Rescued a captive Derelict 17446 | -6/Extension | Rescued a captive Derelict 17446 | -6/Extension | Rescued a captive Derelict 17447 | -6/Extension | Rescued a captive Derelict 17450 | -6/Extension | Rescued a captive Derelict 17853 | -6/Extension | Spotted B-75 Beast 17854 | -6/Extension | Destroyed by B-75 Beast with Heavy Plasma Cannon Last Messages --------------- 17696_ YM-PIS(l) rewired. 17699_ Attempting to rewire IH-08A(b). 17701_ IH-08A(b) rewired. 17703_ Attempting to rewire CO-DQS(g). 17706_ CO-DQS(g) rewired. 17709_ Attempting to rewire O3-71P(b). 17717_ Acquired Carbon-fiber Leg. 17720_ Acquired Flexi-carbon Leg. 17744_ Acquired Arm. Leg. 17751_ Acquired Hpw. Shock Rifle. 17816_ Acquired 7 matter. 17818_ U-05 Engineer Wheel blasted off. 17818_ U-05 Engineer destroyed. 17828_ CO-DQS(g) destroyed. 17828_ IH-08A(b) destroyed. 17845_ Acquired 43 matter. 17850_ Knocked back. 17852_ U-05 Engineer builds a Wall. 17854_ U-05 Engineer destroyed. 17854_ Lgt. Angular Momentum Engine destroyed. Map ----- +----------------------------------------------------+ | #* #??####?????????????????????????????? | | # % #??# #??????????????????T??????????? | | + #?## ##????????????????????????????? | | # #?# T#????????????????????????????? | | ###+####### #########??????????????????????? | | #??????????????????????? | | ###############+######### #??????????????????????? | | ???????????## [ #????# #??????????????????????? | | ???????????#" #????# #??????????????????????? | | ???????????#T " ##???# #??????????????????????? | | ???????????#" """ T#???# #??????????????????????? | | ???????????## ##???#R#??????????????????????? | | ????????????# ! #???# #??????????????????????? | | ????????????#########???# #??????????????????????? | | ????????????????????????# #??????????????????????? | | ????????????????????????#%#??????????????????????? | | ????????????????????????#*#??????????????????????? | | ????????????????????????#/#??????????????????????? | | ????????????????????????#[#??????????????????????? | | ????????????????????????#%#??????????????????????? | | ????????????????????????#=#??????????????????????? | | ????????????????????????#=#??????????????????????? | | ????????????????????????#%#??????????????????????? | | ????????????????????????#%#??????????????????????? | | ????????????????????????#%#??????????????????????? | | ????????????????????????#@#??????????????????????? | | ???????????????????????[$%u=?????????????????????? | | ??????????????????????#===%%RR???????????????????? | | ??????????????????????#*%!%* ?????????????????? | | ??????????????????????# %*%/ ???????????????? | | ####################### % BB ?????????????? | | BB ???????????? | | ??????????? | | ???????????? | | ???????????? | | R A ????????????? | | ####################### BB ????????????? | | ??????????????????????# B??????????????? | | ??????????????????????# ????????????????? | | ??????????????????????# ???????????????????? | | ??????????????????????? ?????????????????????? | | ?????????????????????????????????????????????????? | | ?????????????????????????????????????????????????? | | ?????????????????????????????????????????????????? | | | | | | | | | | | | | +----------------------------------------------------+ Best States ------------- Heat Dissipation 64 Energy Generation 18 Energy Capacity 350 Matter Stores 300 Matter Capacity 300 Sight Range 16 Robot Scan Range 16 Terrain Scan Density 10 Jamming Range 12 Armor Coverage 450 Core Shielding 20 Propulsion Shielding 66 Evasion (%) 57 Targeting Accuracy 8 Recoil Reduction 5 Offensive Hacking 21 Defensive Hacking 10 Item Schematics ----------------- Particle Charger | -9/Materials | Scanalyzed Imp. Hover Unit | -8/Materials | Scanalyzed Robot Schematics ------------------ None Fabricated ------------ Imp. Hover Unit | x2 | -6/Factory Repaired ---------- Hrd. Light Armor Plating | 30% | -8/Materials Lgt. Armor Plating | 31% | -8/Materials Alien Tech Used ----------------- None Achievements -------------- None Challenges ------------ None Game ------ Seed ZioniteJunkTelecube Manual? 0 Play Time 03:02:26 Cumulative 62.7 hours Start 2025.06.19 @ 21:28:14 End 2025.06.20 @ 14:16:53 Sessions 3 Manual Loads 0 Difficulty Rogue Special Mode None Game No. 74 Rogue 74 Adventurer 0 Explorer 0 Win Type - Total 1 Types 1/0/0/0/0/0/0/0/0/0 Lore% 30 Gallery% 36 Achievement% 37 Wizard Run 0 Options --------- Layout 2 ASCII 0 Keyboard 1 Movement Arrows Keybinds 0 Fullscreen 1 Font 24/Proggy Map View 50x44 Zoom Use 0% Tactical HUD 1 Map Filters NONE Filters NONE Steam 1 RUN: 21f5357b-7d6a-47b9-a478-414583c7fd73